fUSD/lending_fUSD_20260122
["ID","MTS","AMOUNT","RATE_DAILY","PERIOD"]
[403030513,1769090241869,500.0,0.00015629,2]
[403030514,1769090242492,500.0,0.00015629,2]
[403030515,1769090243112,300.01,0.00015629,2]
[403030516,1769090243138,199.99,0.00015629,2]
[403030517,1769090243729,500.0,0.00015629,2]
[403030518,1769090244379,500.0,0.00015629,2]
[403030519,1769090245135,500.0,0.00015629,2]
[403030527,1769090401938,1200.0,0.00015637,2]
[403030528,1769090402588,300.0,0.00015637,2]
[403030529,1769090404291,280.0,0.00015638,2]
[403030530,1769090430660,500.0,0.00015637,2]
[403030531,1769090439555,6020.02,0.00015538,2]
[403030532,1769090439580,2231.91733328,0.00015538,2]
[403030533,1769090440805,211.51551941,0.00015637,2]
[403030534,1769090440861,500.0,0.00015637,2]
[403030535,1769090440918,225.2789693,0.00015637,2]
[403030536,1769090440954,296.88692133,0.00015637,2]
[403030537,1769090443096,177.64054503,0.00015538,2]
[403030539,1769090455055,291.54525023,0.00015637,2]
[403030541,1769090468943,6065.22546142,0.00015538,2]
[403030542,1769090468971,3229.78801133,0.00015538,2]
[403030545,1769090492636,1247.88,0.00015325,2]
[403030546,1769090527457,5522.34198867,0.00015629,2]
[403030547,1769090527482,3477.65801133,0.00015629,2]
[403030548,1769090527532,174.61919141,0.00015629,2]
[403030549,1769090530205,6121.49593535,0.00015629,2]
[403030550,1769090530661,226.23686191,0.00015629,2]
[403030551,1769090530687,597.54222661,0.00015629,2]
[403030552,1769090533576,322.6107,0.00015629,2]
[403030553,1769090537627,500.0,0.00015629,2]
[403030554,1769090538003,3210.0,0.00015629,2]
[403030555,1769090538096,500.0,0.00015629,2]
[403030556,1769090538728,500.0,0.00015629,2]
[403030557,1769090539339,500.0,0.00015629,2]
[403030558,1769090539965,500.0,0.00015629,2]
[403030559,1769090540584,500.0,0.00015629,2]
[403030560,1769090540885,500.0,0.00015629,2]
[403030561,1769090541176,500.0,0.00015629,2]
[403030562,1769090541994,500.0,0.00015629,2]
[403030563,1769090542034,500.0,0.00015629,2]
[403030564,1769090542722,500.0,0.00015629,2]
[403030565,1769090548253,151.0,0.00015629,2]
[403030566,1769090548864,151.0,0.00015629,2]
[403030567,1769090549507,67.85707339,0.00015629,2]
[403030568,1769090549532,83.14292661,0.00015629,2]
[403030569,1769090550136,151.0,0.00015629,2]
[403030570,1769090550978,151.0,0.00015629,2]
[403030571,1769090551395,151.0,0.00015629,2]
[403030572,1769090552030,151.0,0.00015629,2]
[403030573,1769090552643,151.0,0.00015629,2]
[403030574,1769090553269,151.0,0.00015629,2]
[403030575,1769090553880,151.0,0.00015629,2]
[403030576,1769090554521,151.0,0.00015629,2]
[403030577,1769090555143,151.0,0.00015629,2]
[403030580,1769090581919,300.0,0.00015637,2]
[403030593,1769090701496,1200.0,0.00015637,2]
[403030594,1769090733016,7057.86707339,0.00015538,2]
[403030595,1769090733048,10000.01,0.00015538,2]
[403030596,1769090733080,10000.01,0.00015538,2]
[403030597,1769090733111,10000.01,0.00015538,2]
[403030598,1769090733144,10000.01,0.00015538,2]
[403030599,1769090733176,10000.01,0.00015538,2]
[403030600,1769090733207,10000.01,0.00015538,2]
[403030601,1769090733238,10000.01,0.00015538,2]
[403030602,1769090733269,10000.01,0.00015538,2]
[403030603,1769090733298,4991.61050178,0.00015538,2]
[403030604,1769090733326,5786.31129789,0.00015538,2]
[403030605,1769090733354,5786.31129789,0.00015538,2]
[403030606,1769090733380,5786.31129789,0.00015538,2]
[403030607,1769090733408,5786.31129789,0.00015538,2]
[403030608,1769090733435,5786.31129789,0.00015538,2]
[403030609,1769090733464,5786.31129789,0.00015538,2]
[403030610,1769090733493,5786.31129789,0.00015538,2]
[403030611,1769090733521,5786.31129789,0.00015538,2]
[403030612,1769090742286,-8262.74543311,0.00015538,2]
[403030613,1769090743628,-10000.01,0.00015538,2]
[403030614,1769090743743,-10000.01,0.00015538,2]
[403030615,1769090743911,-10000.01,0.00015538,2]
[403030616,1769090744195,-10000.01,0.00015538,2]
[403030617,1769090744342,-10000.01,0.00015538,2]
[403030618,1769090744510,-10000.01,0.00015538,2]
[403030619,1769090744683,-10000.01,0.00015538,2]
[403030620,1769090744939,-10000.01,0.00015538,2]
[403030621,1769090745039,-10000.01,0.00015538,2]
[403030622,1769090760820,-10000.01,0.00015538,2]
[403030623,1769090760846,-10000.01,0.00015538,2]
[403030624,1769090760862,-10000.01,0.00015538,2]
[403030625,1769090760984,-10000.01,0.00015538,2]
[403030626,1769090761547,-10000.01,0.00015538,2]
[403030627,1769090761563,-10000.01,0.00015538,2]
[403030628,1769090761583,-10000.01,0.00015538,2]
[403030629,1769090761656,-300.0,0.00015537,2]
[403030630,1769090761694,-9400.01,0.00015538,2]
[403030631,1769090761791,-10000.01,0.00015538,2]
[403030632,1769090763420,-300.0,0.00015537,2]
[403030633,1769090763461,-9400.01,0.00015538,2]
[403030634,1769090768229,10908.966836,7.945e-05,2]
[403030635,1769090770192,-10000.01,0.00015538,2]
[403030636,1769090770403,-10000.01,0.00015538,2]
[403030637,1769090770424,-10000.01,0.00015538,2]
[403030638,1769090770464,-10000.01,0.00015538,2]
[403030639,1769090770620,-10000.01,0.00015538,2]
[403030640,1769090770735,-10000.01,0.00015538,2]
[403030641,1769090770848,-10000.01,0.00015538,2]
[403030642,1769090772971,-10000.01,0.00015538,2]
[403030643,1769090776095,-10000.01,0.00015538,2]
[403030644,1769090776249,-10000.01,0.00015538,2]
[403030645,1769090776393,-10000.01,0.00015538,2]
[403030646,1769090776555,-10000.01,0.00015538,2]
[403030647,1769090776767,-10000.01,0.00015538,2]
[403030648,1769090776900,-10000.01,0.00015538,2]
[403030649,1769090777177,-10000.01,0.00015538,2]
[403030650,1769090782407,-10000.01,0.00015538,2]
[403030651,1769090782564,-10000.01,0.00015538,2]
[403030662,1769090792831,-10000.01,0.00015538,2]
[403030663,1769090796008,-10000.01,0.00015538,2]
[403030664,1769090798982,-10000.01,0.00015538,2]
[403030665,1769090799469,-10000.01,0.00015538,2]
[403030666,1769090799723,-10000.01,0.00015538,2]
[403030667,1769090799986,-10000.01,0.00015538,2]
[403030668,1769090800228,-10000.01,0.00015538,2]
[403030669,1769090801709,-10000.01,0.00015538,2]
[403030670,1769090801952,-10000.01,0.00015538,2]
[403030671,1769090804782,-10000.01,0.00015538,2]
[403030672,1769090804991,-10000.01,0.00015538,2]
[403030673,1769090805251,-10000.01,0.00015538,2]
[403030674,1769090805602,-10000.01,0.00015538,2]
[403030675,1769090805890,-10000.01,0.00015538,2]
[403030676,1769090811402,-10000.01,0.00015538,2]
[403030677,1769090811577,-10000.01,0.00015538,2]
[403030678,1769090811691,-10000.01,0.00015538,2]
[403030679,1769090811832,-10000.01,0.00015538,2]
[403030680,1769090814463,-10000.01,0.00015538,2]
[403030681,1769090827699,229.393993,7.945e-05,2]
[403030682,1769090829838,-300.0,0.00015537,2]
[403030683,1769090829892,-9400.01,0.00015538,2]
[403030684,1769090830092,-10000.01,0.00015538,2]
[403030685,1769090830296,-10000.01,0.00015538,2]
[403030686,1769090830429,-10000.01,0.00015538,2]
[403030687,1769090830580,-10000.01,0.00015538,2]
[403030688,1769090830691,-10000.01,0.00015538,2]
[403030689,1769090830787,-10000.01,0.00015538,2]
[403030690,1769090831554,233.088946,0.00015459,2]
[403030691,1769090832905,-10000.01,0.00015538,2]
[403030692,1769090833887,457.22,0.000155,2]
[403030693,1769090838928,-256.06883016,0.00015538,2]
[403030694,1769090838960,-198.49399628,0.00015538,2]
[403030695,1769090838991,-348.61185,0.00015538,2]
[403030696,1769090839093,-8393.66064712,0.00015538,2]
[403030697,1769090839121,-10000.01,0.00015538,2]
[403030698,1769090839168,-10000.01,0.00015538,2]
[403030699,1769090839301,-10000.01,0.00015538,2]
[403030700,1769090839454,-10000.01,0.00015538,2]
[403030701,1769090839654,-10000.01,0.00015538,2]
[403030702,1769090839785,500.0,0.000176,30]
[403030703,1769090839824,-10000.01,0.00015538,2]
[403030704,1769090840298,665.20669713,0.00013,2]
[403030707,1769090949966,8182.37754,0.00015438,2]
[403030708,1769090955379,484.17241729,0.00015438,2]
[403030709,1769090962445,-1200.0,0.00015537,2]
[403030710,1769090962476,-300.0,0.00015537,2]
[403030711,1769090962506,-300.0,0.00015537,2]
[403030712,1769090962537,-1281.23712116,0.00015538,2]
[403030713,1769090962648,-3837.53575768,0.00015538,2]
[403030714,1769090962697,-10000.01,0.00015538,2]
[403030715,1769090965456,-10000.01,0.00015538,2]
[403030716,1769090968288,-10000.01,0.00015538,2]
[403030717,1769090982558,2012.6968,0.00015438,2]
[403030732,1769091009914,200.0,0.00014671,2]
[403030740,1769091017459,1094.13674262,0.000155,2]
[403030744,1769091032236,-300.0,0.00015537,2]
[403030745,1769091032246,-188.41,0.00015537,2]
[403030746,1769091032258,-111.59,0.00015537,2]
[403030747,1769091032267,-1200.0,0.00015537,2]
[403030748,1769091032277,-279.0,0.00015537,2]
[403030749,1769091032286,-26.75995375,0.00015538,2]
[403030750,1769091032297,-390.46996716,0.00015538,2]
[403030751,1769091032323,-853.06165973,0.00015538,2]
[403030752,1769091032335,-889.22490028,0.00015538,2]
[403030753,1769091032347,-8358.6192992,0.00015538,2]
[403030754,1769091032366,-529.74179822,0.00015538,2]
[403030755,1769091032413,-454120.46068326,0.00015538,2]
[403030756,1769091032422,-174.05143571,0.00015538,2]
[403030757,1769091032432,-122965.2902038,0.00015538,2]
[403030758,1769091032441,-11042.2144,0.00015538,2]
[403030759,1769091032450,-500.0,0.00015538,2]
[403030760,1769091032459,-2500.0,0.00015538,2]
[403030761,1769091032468,-160.1693,0.00015538,2]
[403030762,1769091032477,-174.61919141,0.00015629,2]
[403030763,1769091032487,-823.77908852,0.00015629,2]
[403030764,1769091032496,-151.0,0.00015629,2]
[403030765,1769091032505,-151.0,0.00015629,2]
[403030766,1769091032514,-151.0,0.00015629,2]
[403030767,1769091032524,-500.0,0.00015629,2]
[403030769,1769091032535,-151.0,0.00015629,2]
[403030771,1769091032544,-151.0,0.00015629,2]
[403030773,1769091032554,-500.0,0.00015629,2]
[403030775,1769091032562,-460.62223038,0.00015629,2]
[403030777,1769091032572,-151.0,0.00015629,2]
[403030779,1769091032583,-151.0,0.00015629,2]
[403030781,1769091032592,-151.0,0.00015629,2]
[403030783,1769091032602,-151.0,0.00015629,2]
[403030785,1769091032611,-151.0,0.00015629,2]
[403030786,1769091032621,-151.0,0.00015629,2]
[403030789,1769091032631,-151.0,0.00015629,2]
[403030791,1769091032641,-151.0,0.00015629,2]
[403030793,1769091032652,-151.0,0.00015629,2]
[403030794,1769091032662,-151.0,0.00015629,2]
[403030803,1769091032726,-151.0,0.00015629,2]
[403030805,1769091032736,-151.0,0.00015629,2]
[403030807,1769091032746,-3210.0,0.00015629,2]
[403030809,1769091032756,-322.6107,0.00015629,2]
[403030811,1769091032765,-200.0,0.00015629,2]
[403030813,1769091032775,-500.0,0.00015637,2]
[403030815,1769091032783,-500.0,0.00015637,2]
[403030817,1769091032792,-500.0,0.00015637,2]
[403030819,1769091032801,-256.02963433,0.00015638,2]
[403030821,1769091032811,-500.0,0.00015638,2]
[403030822,1769091032819,-500.0,0.00015737,2]
[403030823,1769091032829,-500.0,0.00015737,2]
[403030824,1769091032838,-500.0,0.00015737,2]
[403030825,1769091032848,-500.0,0.00015737,2]
[403030826,1769091032857,-197.58025142,0.00015737,2]
[403030827,1769091032866,-511.15337826,0.00015737,2]
[403030828,1769091032876,-500.0,0.00015737,2]
[403030829,1769091032888,-502.89153827,0.00015737,2]
[403030830,1769091032898,-500.0,0.00015737,2]
[403030831,1769091032908,-500.0,0.00015737,2]
[403030832,1769091032917,-500.0,0.00015737,2]
[403030833,1769091032927,-500.0,0.00015737,2]
[403030834,1769091032936,-500.0,0.00015737,2]
[403030835,1769091032946,-500.0,0.00015737,2]
[403030836,1769091032955,-1645.4,0.00015737,2]
[403030837,1769091032965,-500.0,0.00015737,2]
[403030838,1769091032974,-500.0,0.00015737,2]
[403030839,1769091032983,-500.0,0.00015737,2]
[403030840,1769091032993,-207.89511552,0.00015737,2]
[403030841,1769091033003,-166.66,0.00015794,2]
[403030842,1769091033012,-1500.0,0.0001586,2]
[403030843,1769091033022,-1304.48,0.00015872,2]
[403030844,1769091033031,-150.0,0.00015889,2]
[403030845,1769091033040,-151.0,0.00015897,2]
[403030846,1769091033050,-32726.57,0.00016,2]
[403030847,1769091033059,-4999.99,0.00016,2]
[403030848,1769091033069,-5253.38,0.00016,2]
[403030849,1769091033078,-426.96,0.00016,2]
[403030850,1769091033088,-151.0,0.00016,2]
[403030851,1769091033098,-151.0,0.00016,2]
[403030852,1769091033107,-151.0,0.00016,2]
[403030853,1769091033117,-151.0,0.00016,2]
[403030854,1769091033126,-151.0,0.00016,2]
[403030855,1769091033136,-1265.0,0.00016,2]
[403030856,1769091033146,-151.0,0.00016,2]
[403030857,1769091033156,-151.0,0.00016,2]
[403030858,1769091033165,-1265.0,0.00016,2]
[403030859,1769091033175,-151.0,0.00016,2]
[403030860,1769091033184,-151.0,0.00016,2]
[403030861,1769091033194,-151.0,0.00016,2]
[403030862,1769091033204,-151.0,0.00016,2]
[403030863,1769091033213,-1265.0,0.00016,2]
[403030864,1769091033223,-151.0,0.00016,2]
[403030865,1769091033233,-151.0,0.00016,2]
[403030866,1769091033243,-1265.0,0.00016,2]
[403030867,1769091033252,-164.13147686,0.00016,2]
[403030868,1769091033261,-151.0,0.00016,2]
[403030869,1769091033270,-151.0,0.00016,2]
[403030870,1769091033280,-151.0,0.00016,2]
[403030871,1769091033289,-151.0,0.00016,2]
[403030872,1769091033299,-151.0,0.00016,2]
[403030873,1769091033308,-151.0,0.00016,2]
[403030874,1769091033317,-151.0,0.00016,2]
[403030875,1769091033327,-151.0,0.00016,2]
[403030876,1769091033336,-151.0,0.00016,2]
[403030877,1769091033346,-151.0,0.00016,2]
[403030878,1769091033359,-151.0,0.00016,2]
[403030879,1769091033369,-151.0,0.00016,2]
[403030880,1769091033378,-1645.4,0.00016011,2]
[403030881,1769091033388,-1745.43,0.00016039,2]
[403030882,1769091033397,-200.0,0.00016085,2]
[403030883,1769091033407,-315.52,0.000161,2]
[403030884,1769091033417,-250.0,0.00016103,2]
[403030885,1769091033427,-166.66,0.00016113,2]
[403030886,1769091033436,-4607.66,0.00016138,2]
[403030887,1769091033445,-181.08010149,0.00016177,2]
[403030888,1769091033455,-854.2589148,0.00016177,2]
[403030889,1769091033464,-500.0,0.00016202,2]
[403030890,1769091033473,-1612.43,0.0001621,2]
[403030891,1769091033483,-1645.4,0.00016285,2]
[403030892,1769091033492,-1216.57,0.00016331,2]
[403030893,1769091033501,-166.66,0.00016432,2]
[403030894,1769091033511,-500.0,0.00016438,2]
[403030895,1769091033520,-500.0,0.00016438,2]
[403030896,1769091033530,-500.0,0.00016438,2]
[403030897,1769091033541,-264.81268477,0.00016438,2]
[403030898,1769091033554,-500.0,0.00016438,2]
[403030899,1769091033563,-500.0,0.00016438,2]
[403030900,1769091033574,-500.0,0.00016438,2]
[403030901,1769091033584,-500.0,0.00016438,2]
[403030902,1769091033593,-500.0,0.00016438,2]
[403030903,1769091033603,-500.0,0.00016438,2]
[403030904,1769091033615,-500.0,0.00016438,2]
[403030905,1769091033624,-500.0,0.00016438,2]
[403030906,1769091033634,-500.0,0.00016438,2]
[403030907,1769091033643,-500.0,0.00016438,2]
[403030908,1769091033652,-500.0,0.00016438,2]
[403030909,1769091033662,-500.0,0.00016438,2]
[403030910,1769091033671,-500.0,0.00016438,2]
[403030911,1769091033680,-500.0,0.00016438,2]
[403030912,1769091033689,-500.0,0.00016438,2]
[403030913,1769091033699,-500.0,0.00016438,2]
[403030914,1769091033708,-500.0,0.00016438,2]
[403030915,1769091033718,-500.0,0.00016438,2]
[403030916,1769091033727,-575.5932997,0.00016438,2]
[403030917,1769091033737,-251.41764929,0.000165,2]
[403030918,1769091033750,-3240.0,0.00016505,2]
[403030919,1769091033759,-1645.4,0.00016559,2]
[403030920,1769091033768,-155.92,0.0001658,2]
[403030921,1769091033778,-510.0,0.00016656,2]
[403030922,1769091033788,-1168.92958733,0.00016702,2]
[403030923,1769091033797,-315.52,0.00016703,2]
[403030924,1769091033806,-164.8,0.00016712,2]
[403030925,1769091033815,-187.78006525,0.00016725,2]
[403030926,1769091033824,-885.86649465,0.00016725,2]
[403030927,1769091033833,-164.05,0.00016727,2]
[403030928,1769091033843,-500.0,0.0001674,2]
[403030929,1769091033854,-166.66,0.00016751,2]
[403030930,1769091033863,-1852.42,0.00016779,2]
[403030931,1769091033872,-500.0,0.00016802,2]
[403030932,1769091033881,-1645.4,0.00016833,2]
[403030933,1769091033890,-12371.39757222,0.000169,2]
[403030934,1769091033900,-2096.59,0.0001698,2]
[403030935,1769091033909,-1105.0,0.00016995,2]
[403030936,1769091033918,-420.0,0.00016995,2]
[403030937,1769091033927,-300.0,0.00016995,2]
[403030938,1769091033937,-3210.0,0.00016998,2]
[403030939,1769091033949,-334.5472959,0.00016998,2]
[403030940,1769091033958,-1800.0,0.00017,2]
[403030941,1769091033968,-1680.0,0.00017081,2]
[403030942,1769091033977,-250.0,0.00017091,2]
[403030943,1769091033987,-600.0,0.00017091,2]
[403030944,1769091033996,-250.0,0.00017091,2]
[403030945,1769091034005,-1645.4,0.00017107,2]
[403030946,1769091034015,-250.0,0.00017202,2]
[403030947,1769091034024,-334.0,0.00017205,2]
[403030948,1769091034033,-194.72792766,0.00017273,2]
[403030949,1769091034044,-918.64355495,0.00017273,2]
[403030950,1769091034053,-166.68,0.00017278,2]
[403030951,1769091034063,-762.09,0.0001728,2]
[403030952,1769091034072,-315.52,0.00017307,2]
[403030953,1769091034082,-1645.4,0.00017381,2]
[403030954,1769091034091,-8182.37753991,0.00017401,2]
[403030955,1769091034101,-500.0,0.00017466,2]
[403030956,1769091034110,-762.09,0.00017554,2]
[403030957,1769091034120,-500.0,0.00017596,2]
[403030958,1769091034129,-551.14146089,0.00017596,2]
[403030959,1769091034138,-535.10745303,0.00017596,2]
[403030960,1769091034148,-500.0,0.00017596,2]
[403030961,1769091034157,-400.0,0.00017597,2]
[403030962,1769091034166,-1265.0,0.000176,2]
[403030963,1769091034176,-1265.0,0.000176,2]
[403030964,1769091034185,-1265.0,0.000176,2]
[403030965,1769091034194,-151.0,0.000176,2]
[403030966,1769091034204,-155.92,0.00017616,2]
[403030967,1769091034213,-242.04,0.00017625,2]
[403030968,1769091034223,-1645.4,0.00017655,2]
[403030969,1769091034232,-500.62039903,0.00017673,2]
[403030970,1769091034241,-501.01001678,0.00017673,2]
[403030971,1769091034251,-525.58193812,0.00017673,2]
[403030972,1769091034261,-500.0,0.00017673,2]
[403030973,1769091034272,-500.0,0.00017673,2]
[403030974,1769091034282,-501.49298177,0.00017673,2]
[403030975,1769091034292,-500.0,0.00017673,2]
[403030976,1769091034301,-500.41908961,0.00017673,2]
[403030977,1769091034311,-500.0,0.00017673,2]
[403030978,1769091034320,-500.0,0.00017673,2]
[403030979,1769091034330,-500.0,0.00017673,2]
[403030980,1769091034339,-500.0,0.00017699,2]
[403030981,1769091034357,-150.0,0.00017699,2]
[403030982,1769091034368,-150.0,0.00017699,2]
[403030983,1769091034378,-150.0,0.00017699,2]
[403030984,1769091034388,-150.0,0.00017699,2]
[403030985,1769091034397,-150.0,0.00017699,2]
[403030986,1769091034406,-150.0,0.00017699,2]
[403030987,1769091034416,-500.0,0.00017699,2]
[403030988,1769091034426,-150.0,0.00017699,2]
[403030989,1769091034436,-500.0,0.00017699,2]
[403030990,1769091034446,-150.0,0.00017699,2]
[403030991,1769091034455,-500.0,0.00017754,2]
[403030992,1769091034465,-150.0,0.00017754,2]
[403030993,1769091034475,-150.0,0.00017754,2]
[403030994,1769091034485,-150.0,0.00017754,2]
[403030995,1769091034494,-150.0,0.00017754,2]
[403030996,1769091034504,-187.63798151,0.00017754,2]
[403030997,1769091034513,-500.0,0.00017754,2]
[403030998,1769091034522,-500.0,0.00017754,2]
[403030999,1769091034535,-150.0,0.00017754,2]
[403031000,1769091034544,-168.0,0.00017757,2]
[403031001,1769091034553,-150.0,0.00017808,2]
[403031002,1769091034563,-500.0,0.00017808,2]
[403031003,1769091034572,-500.0,0.00017809,2]
[403031004,1769091034582,-200.0,0.00017809,2]
[403031005,1769091034591,-150.0,0.00017809,2]
[403031006,1769091034601,-150.0,0.00017809,2]
[403031007,1769091034612,-188.0,0.00017809,2]
[403031008,1769091034622,-500.0,0.00017809,2]
[403031009,1769091034631,-159.65873874,0.00017809,2]
[403031010,1769091034641,-200.0,0.00017809,2]
[403031011,1769091034651,-500.0,0.00017819,2]
[403031012,1769091034660,-500.0,0.00017819,2]
[403031013,1769091034669,-2000.0,0.0001782,2]
[403031014,1769091034678,-2000.0,0.0001782,2]
[403031015,1769091034687,-2000.0,0.0001782,2]
[403031016,1769091034697,-2000.0,0.0001782,2]
[403031017,1769091034707,-169.43137367,0.00017821,2]
[403031018,1769091034717,-952.63336648,0.00017821,2]
[403031019,1769091034726,-762.09,0.00017828,2]
[403031020,1769091034735,-2096.59,0.00017829,2]
[403031021,1769091034744,-648.41,0.0001784,2]
[403031022,1769091034754,-635.0,0.00017852,2]
[403031023,1769091034763,-200.0,0.00017855,2]
[403031024,1769091034772,-1304.48,0.00017855,2]
[403031025,1769091034781,-200.0,0.00017856,2]
[403031026,1769091034790,-200.0,0.00017856,2]
[403031027,1769091034800,-150.0,0.00017863,2]
[403031028,1769091034809,-562.88535723,0.00017863,2]
[403031029,1769091034818,-500.0,0.00017863,2]
[403031030,1769091034827,-150.0,0.00017863,2]
[403031031,1769091034837,-150.0,0.00017863,2]
[403031032,1769091034846,-500.0,0.00017863,2]
[403031033,1769091034856,-334.0,0.00017866,2]
[403031034,1769091034865,-103793.0858123,0.00017884,2]
[403031035,1769091034874,-200.0,0.00017886,2]
[403031036,1769091034884,-6901.3598,0.00017899,2]
[403031037,1769091034894,-500.0,0.000179,6]
[403031038,1769091034903,-175.28120656,0.000179,2]
[403031039,1769091034914,-315.52,0.00017911,2]
[403031040,1769091034923,-204.57677272,0.00017918,2]
[403031041,1769091034932,-334.0,0.00017918,2]
[403031042,1769091034942,-500.0,0.00017918,2]
[403031043,1769091034951,-150.0,0.00017918,2]
[403031044,1769091034961,-150.0,0.00017918,2]
[403031045,1769091034971,-500.0,0.00017918,2]
[403031046,1769091034980,-1645.4,0.00017929,2]
[403031047,1769091034990,-334.0,0.00017933,2]
[403031048,1769091034999,-500.0,0.00017973,2]
[403031049,1769091035009,-250.0,0.00017973,2]
[403031050,1769091035018,-250.0,0.00017973,2]
[403031051,1769091035027,-411.82083594,0.00017973,2]
[403031052,1769091035036,-431.09564286,0.0001799,2]
[403031053,1769091035047,-155.421,0.00017999,2]
[403031054,1769091035056,-500.0,0.00017999,2]
[403031055,1769091035065,-500.0,0.00017999,2]
[403031056,1769091035074,-500.0,0.00017999,2]
[403031057,1769091035084,-500.0,0.00017999,2]
[403031058,1769091035093,-500.0,0.00017999,2]
[403031059,1769091035103,-500.0,0.00017999,2]
[403031060,1769091035112,-5108.0,0.00018,2]
[403031061,1769091035122,-541277.64754164,0.00018,2]
[403031062,1769091035131,-1956.0,0.00018,3]
[403031063,1769091035140,-151.0,0.00018,2]
[403031064,1769091035150,-151.0,0.00018,2]
[403031065,1769091035159,-151.0,0.00018,2]
[403031066,1769091035169,-151.0,0.00018,2]
[403031067,1769091035178,-151.0,0.00018,2]
[403031068,1769091035188,-151.0,0.00018,2]
[403031069,1769091035198,-151.0,0.00018,2]
[403031070,1769091035207,-2000.0,0.00018,2]
[403031071,1769091035216,-2000.0,0.00018,2]
[403031072,1769091035226,-546.794571,0.00018,2]
[403031073,1769091035235,-546.794571,0.00018,2]
[403031074,1769091035244,-546.794571,0.00018,2]
[403031075,1769091035254,-546.794571,0.00018,2]
[403031076,1769091035263,-151.0,0.00018,2]
[403031077,1769091035272,-151.0,0.00018,2]
[403031078,1769091035282,-151.0,0.00018,2]
[403031079,1769091035291,-1831.7,0.00018,2]
[403031080,1769091035301,-1831.7,0.00018,2]
[403031081,1769091035311,-1831.7,0.00018,2]
[403031082,1769091035320,-1831.7,0.00018,2]
[403031083,1769091035330,-1831.7,0.00018,2]
[403031084,1769091035339,-1831.7,0.00018,2]
[403031085,1769091035348,-1831.7,0.00018,2]
[403031086,1769091035358,-1831.7,0.00018,2]
[403031087,1769091035367,-1831.7,0.00018,2]
[403031088,1769091035376,-1831.7,0.00018,2]
[403031089,1769091035386,-500.0,0.00018028,2]
[403031090,1769091035395,-199.0,0.00018061,2]
[403031091,1769091035405,-194.0,0.00018071,2]
[403031092,1769091035414,-166.66,0.00018077,2]
[403031093,1769091035424,-194.0,0.00018081,2]
[403031094,1769091035434,-500.0,0.00018083,2]
[403031095,1769091035443,-194.0,0.00018088,2]
[403031096,1769091035452,-1778.18711675,0.000181,2]
[403031097,1769091035462,-762.09,0.00018102,2]
[403031098,1769091035471,-194.0,0.00018105,2]
[403031099,1769091035480,-199.0,0.00018122,2]
[403031100,1769091035490,-500.0,0.00018137,2]
[403031101,1769091035499,-1806.0,0.00018179,2]
[403031102,1769091035508,-334.98771886,0.00018192,2]
[403031103,1769091035517,-1645.4,0.00018203,2]